fUSD/lending_fUSD_20250514
["ID","MTS","AMOUNT","RATE_DAILY","PERIOD"]
[361028844,1747209093412,-400.0,0.0001315,2]
[361028845,1747209093421,-400.0,0.0001315,2]
[361028846,1747209093431,-300.381756,0.0001315,2]
[361028847,1747209093440,-300.381756,0.0001315,2]
[361028848,1747209093450,-596.11,0.0001315,2]
[361028849,1747209093460,-400.0,0.0001315,2]
[361028850,1747209093472,-151.0,0.0001315,2]
[361028851,1747209093482,-400.0,0.0001315,2]
[361028852,1747209093492,-400.0,0.0001315,2]
[361028853,1747209093502,-151.0,0.0001315,2]
[361028854,1747209093512,-737.65,0.0001315,2]
[361028855,1747209093523,-711.57,0.0001315,2]
[361028856,1747209093533,-672.9,0.0001315,2]
[361028857,1747209093544,-400.0,0.0001315,2]
[361028858,1747209093554,-400.0,0.0001315,2]
[361028859,1747209093565,-1053.164603,0.0001315,2]
[361028860,1747209093575,-1053.164603,0.0001315,2]
[361028861,1747209093585,-460.32,0.0001315,2]
[361028862,1747209093595,-400.0,0.0001315,2]
[361028863,1747209093605,-400.0,0.0001315,2]
[361028864,1747209093615,-400.0,0.0001315,2]
[361028865,1747209093625,-939.06,0.0001315,2]
[361028866,1747209093635,-436.72,0.0001315,2]
[361028867,1747209093645,-400.0,0.0001315,2]
[361028868,1747209093654,-400.0,0.0001315,2]
[361028869,1747209093664,-400.0,0.0001315,2]
[361028870,1747209093675,-1236.03,0.0001315,2]
[361028871,1747209093686,-882.64,0.0001315,2]
[361028872,1747209093696,-400.0,0.0001315,2]
[361028873,1747209093706,-400.0,0.0001315,2]
[361028874,1747209093716,-400.0,0.0001315,2]
[361028875,1747209093728,-400.0,0.0001315,2]
[361028876,1747209093738,-483.18,0.0001315,2]
[361028877,1747209093748,-400.0,0.0001315,2]
[361028878,1747209093758,-400.0,0.0001315,2]
[361028879,1747209093768,-400.0,0.0001315,2]
[361028880,1747209093778,-400.0,0.0001315,2]
[361028881,1747209093788,-400.0,0.0001315,2]
[361028882,1747209093799,-400.0,0.0001315,2]
[361028883,1747209093810,-400.0,0.0001315,2]
[361028884,1747209093820,-479.52,0.0001315,2]
[361028885,1747209093830,-400.0,0.0001315,2]
[361028886,1747209093840,-634.51,0.0001315,2]
[361028887,1747209093850,-435.37,0.0001315,2]
[361028888,1747209093860,-596.16,0.0001315,2]
[361028889,1747209093870,-400.0,0.0001315,2]
[361028890,1747209093879,-494.69,0.0001315,2]
[361028891,1747209093889,-400.0,0.0001315,2]
[361028892,1747209093899,-400.0,0.0001315,2]
[361028893,1747209093908,-400.0,0.0001315,2]
[361028894,1747209093919,-423.83724181,0.0001315,2]
[361028895,1747209093928,-400.0,0.0001315,2]
[361028896,1747209093938,-400.0,0.0001315,2]
[361028897,1747209093948,-599.12,0.0001315,2]
[361028898,1747209093957,-1062.41,0.0001315,2]
[361028899,1747209093966,-400.0,0.0001315,2]
[361028900,1747209093977,-400.0,0.0001315,2]
[361028901,1747209093986,-400.0,0.0001315,2]
[361028902,1747209093996,-1179.96,0.0001315,2]
[361028903,1747209094005,-450.9,0.0001315,2]
[361028904,1747209094015,-884.53,0.0001315,2]
[361028905,1747209094025,-400.0,0.0001315,2]
[361028906,1747209094036,-400.0,0.0001315,2]
[361028907,1747209094047,-1027.84,0.0001315,2]
[361028908,1747209094059,-1395.43,0.0001315,2]
[361028909,1747209094069,-543.81,0.0001315,2]
[361028910,1747209094079,-688.09,0.0001315,2]
[361028911,1747209094093,-540.49,0.0001315,2]
[361028912,1747209094103,-545.09,0.0001315,2]
[361028913,1747209094113,-1082.93,0.0001315,2]
[361028914,1747209094124,-400.0,0.0001315,2]
[361028915,1747209094133,-476.99,0.0001315,2]
[361028916,1747209094144,-502.4,0.0001315,2]
[361028917,1747209094154,-400.0,0.0001315,2]
[361028918,1747209094163,-518.03,0.0001315,2]
[361028919,1747209094173,-400.0,0.0001315,2]
[361028920,1747209094182,-400.0,0.0001315,2]
[361028921,1747209094192,-400.0,0.0001315,2]
[361028922,1747209094201,-2119.41,0.0001315,2]
[361028923,1747209094211,-1034.94,0.0001315,2]
[361028924,1747209094221,-528.83,0.0001315,2]
[361028925,1747209094230,-521.6,0.0001315,2]
[361028926,1747209094240,-833.6,0.0001315,2]
[361028927,1747209094249,-1089.67,0.0001315,2]
[361028928,1747209094259,-855.81,0.0001315,2]
[361028929,1747209094268,-649.48,0.0001315,2]
[361028930,1747209094278,-662.78,0.0001315,2]
[361028931,1747209094288,-1112.52,0.0001315,2]
[361028932,1747209094297,-450.15,0.0001315,2]
[361028933,1747209094307,-400.0,0.0001315,2]
[361028934,1747209094316,-670.7,0.0001315,2]
[361028935,1747209094325,-665.82,0.0001315,2]
[361028936,1747209094335,-400.0,0.0001315,2]
[361028937,1747209094344,-400.0,0.0001315,2]
[361028938,1747209094356,-936.51,0.0001315,2]
[361028939,1747209094366,-356.82289954,0.0001315,2]
[361028940,1747209094375,-1073.27,0.0001315,2]
[361028941,1747209094384,-400.0,0.0001315,2]
[361028942,1747209094393,-1216.82,0.0001315,2]
[361028943,1747209094405,-400.0,0.0001315,2]
[361028944,1747209094415,-400.0,0.0001315,2]
[361028945,1747209094424,-400.0,0.0001315,2]
[361028946,1747209094436,-400.0,0.0001315,2]
[361028947,1747209094445,-909.1,0.0001315,2]
[361028948,1747209094455,-1630.94,0.0001315,2]
[361028949,1747209094465,-400.0,0.0001315,2]
[361028950,1747209094478,-565.83,0.0001315,2]
[361028951,1747209094487,-400.0,0.0001315,2]
[361028952,1747209094497,-1329.57,0.0001315,2]
[361028953,1747209094506,-1847.25,0.0001315,2]
[361028954,1747209094516,-400.0,0.0001315,2]
[361028955,1747209094526,-400.0,0.0001315,2]
[361028956,1747209094536,-422.51,0.0001315,2]
[361028957,1747209094546,-400.0,0.0001315,2]
[361028958,1747209094556,-876.56,0.0001315,2]
[361028959,1747209094565,-400.0,0.0001315,2]
[361028960,1747209094575,-2140.12,0.0001315,2]
[361028961,1747209094584,-571.96,0.0001315,2]
[361028962,1747209094594,-410.56,0.0001315,2]
[361028963,1747209094603,-892.67,0.0001315,2]
[361028964,1747209094613,-400.0,0.0001315,2]
[361028965,1747209094622,-400.0,0.0001315,2]
[361028966,1747209094632,-400.0,0.0001315,2]
[361028967,1747209094642,-400.0,0.0001315,2]
[361028968,1747209094652,-507.63,0.0001315,2]
[361028969,1747209094662,-1074.21,0.0001315,2]
[361028970,1747209094672,-400.0,0.0001315,2]
[361028971,1747209094682,-400.0,0.0001315,2]
[361028972,1747209094692,-2412.67,0.0001315,2]
[361028973,1747209094701,-400.0,0.0001315,2]
[361028974,1747209094711,-400.0,0.0001315,2]
[361028975,1747209094720,-400.0,0.0001315,2]
[361028976,1747209094730,-1071.37,0.0001315,2]
[361028977,1747209094740,-400.0,0.0001315,2]
[361028978,1747209094749,-585.74,0.0001315,2]
[361028979,1747209094759,-400.0,0.0001315,2]
[361028980,1747209094768,-1055.84,0.0001315,2]
[361028981,1747209094777,-400.0,0.0001315,2]
[361028982,1747209094787,-3342.19,0.0001315,2]
[361028983,1747209094796,-1569.68,0.0001315,2]
[361028984,1747209094806,-1011.98,0.0001315,2]
[361028985,1747209094815,-400.0,0.0001315,2]
[361028986,1747209094824,-437.7,0.0001315,2]
[361028987,1747209094834,-841.38,0.0001315,2]
[361028988,1747209094843,-2138.29,0.0001315,2]
[361028989,1747209094853,-400.0,0.0001315,2]
[361028990,1747209094863,-931.09,0.0001315,2]
[361028991,1747209094873,-799.14,0.0001315,2]
[361028992,1747209094882,-400.03,0.0001315,2]
[361028993,1747209094891,-246.48383994,0.0001315,2]
[361028994,1747209094901,-561.99,0.0001315,2]
[361028995,1747209094911,-447.86,0.0001315,2]
[361028996,1747209094920,-1506.45,0.0001315,2]
[361028997,1747209094929,-1248.25,0.0001315,2]
[361028998,1747209094939,-500.31,0.0001315,2]
[361028999,1747209094948,-400.0,0.0001315,2]
[361029000,1747209094957,-466.29,0.0001315,2]
[361029001,1747209094967,-559.56,0.0001315,2]
[361029002,1747209094977,-400.0,0.0001315,2]
[361029003,1747209094987,-400.0,0.0001315,2]
[361029004,1747209094996,-499.83,0.0001315,2]
[361029005,1747209095005,-400.0,0.0001315,2]
[361029006,1747209095015,-400.0,0.0001315,2]
[361029007,1747209095026,-400.0,0.0001315,2]
[361029008,1747209095036,-648.49,0.0001315,2]
[361029009,1747209095045,-400.0,0.0001315,2]
[361029010,1747209095054,-400.0,0.0001315,2]
[361029011,1747209095063,-400.0,0.0001315,2]
[361029012,1747209095073,-735.21,0.0001315,2]
[361029013,1747209095082,-2396.6,0.0001315,2]
[361029014,1747209095092,-488.25,0.0001315,2]
[361029015,1747209095101,-686.74,0.0001315,2]
[361029016,1747209095111,-663.93,0.0001315,2]
[361029017,1747209095121,-400.0,0.0001315,2]
[361029018,1747209095131,-400.0,0.0001315,2]
[361029019,1747209095140,-400.0,0.0001315,2]
[361029020,1747209095150,-765.05,0.0001315,2]
[361029021,1747209095160,-837.82,0.0001315,2]
[361029022,1747209095170,-400.0,0.0001315,2]
[361029023,1747209095179,-400.0,0.0001315,2]
[361029024,1747209095188,-846.38,0.0001315,2]
[361029025,1747209095197,-400.0,0.0001315,2]
[361029026,1747209095207,-713.16,0.0001315,2]
[361029027,1747209095217,-544.35,0.0001315,2]
[361029028,1747209095228,-1073.49,0.0001315,2]
[361029029,1747209095242,-400.0,0.0001315,2]
[361029030,1747209095252,-452.73,0.0001315,2]
[361029031,1747209095262,-400.0,0.0001315,2]
[361029032,1747209095271,-400.0,0.0001315,2]
[361029033,1747209095280,-610.73,0.0001315,2]
[361029034,1747209095290,-400.0,0.0001315,2]
[361029035,1747209095300,-400.0,0.0001315,2]
[361029036,1747209095309,-1807.34,0.0001315,2]
[361029037,1747209095319,-1075.48,0.0001315,2]
[361029038,1747209095329,-400.0,0.0001315,2]
[361029039,1747209095338,-442.29,0.0001315,2]
[361029040,1747209095348,-400.0,0.0001315,2]
[361029041,1747209095362,-400.0,0.0001315,2]
[361029042,1747209095371,-561.75,0.0001315,2]
[361029043,1747209095383,-504.1,0.0001315,2]
[361029044,1747209095393,-546.56,0.0001315,2]
[361029045,1747209095404,-690.43,0.0001315,2]
[361029046,1747209095415,-400.0,0.0001315,2]
[361029047,1747209095425,-400.0,0.0001315,2]
[361029048,1747209095436,-400.0,0.0001315,2]
[361029049,1747209095445,-416.24,0.0001315,2]
[361029050,1747209095455,-402.6,0.0001315,2]
[361029051,1747209095464,-400.0,0.0001315,2]
[361029052,1747209095475,-400.0,0.0001315,2]
[361029053,1747209095485,-224.53787208,0.0001315,2]
[361029054,1747209095494,-1113.76,0.0001315,2]
[361029055,1747209095690,-400.0,0.0001315,2]
[361029056,1747209095701,-1405.65,0.0001315,2]
[361029057,1747209095711,-468.31,0.0001315,2]
[361029058,1747209095720,-1001.39,0.0001315,2]
[361029059,1747209095730,-777.85,0.0001315,2]
[361029060,1747209095740,-665.02,0.0001315,2]
[361029061,1747209095750,-2209.78,0.0001315,2]
[361029062,1747209095760,-542.27,0.0001315,2]
[361029063,1747209095770,-400.0,0.0001315,2]
[361029064,1747209095780,-1048.34,0.0001315,2]
[361029065,1747209095790,-400.0,0.0001315,2]
[361029066,1747209095800,-400.0,0.0001315,2]
[361029067,1747209095809,-1451.38,0.0001315,2]
[361029068,1747209095818,-619.23,0.0001315,2]
[361029069,1747209095828,-400.0,0.0001315,2]
[361029070,1747209095838,-2336.68,0.0001315,2]
[361029071,1747209095848,-845.06,0.0001315,2]
[361029072,1747209095858,-400.0,0.0001315,2]
[361029073,1747209095867,-1320.89,0.0001315,2]
[361029074,1747209095877,-400.0,0.0001315,2]
[361029075,1747209095887,-666.66,0.0001315,2]
[361029076,1747209095897,-663.81,0.0001315,2]
[361029077,1747209095906,-400.0,0.0001315,2]
[361029078,1747209095916,-400.0,0.0001315,2]
[361029079,1747209095925,-541.3,0.0001315,2]
[361029080,1747209095935,-400.0,0.0001315,2]
[361029081,1747209095944,-400.0,0.0001315,2]
[361029082,1747209095954,-400.0,0.0001315,2]
[361029083,1747209095964,-400.0,0.0001315,2]
[361029084,1747209095974,-400.0,0.0001315,2]
[361029085,1747209095984,-1134.08,0.0001315,2]
[361029086,1747209095994,-445.33,0.0001315,2]
[361029087,1747209096003,-1257.84,0.0001315,2]
[361029088,1747209096013,-575.36,0.0001315,2]
[361029089,1747209096023,-400.0,0.0001315,2]
[361029090,1747209096032,-1000.0,0.0001315,2]
[361029091,1747209096042,-1007.26,0.0001315,2]
[361029092,1747209096051,-400.0,0.0001315,2]
[361029093,1747209096061,-659.39,0.0001315,2]
[361029094,1747209096070,-1204.75,0.0001315,2]
[361029095,1747209096080,-400.98,0.0001315,2]
[361029096,1747209096090,-906.35,0.0001315,2]
[361029097,1747209096100,-1524.33,0.0001315,2]
[361029098,1747209096109,-466.88,0.0001315,2]
[361029099,1747209096119,-774.55,0.0001315,2]
[361029100,1747209096129,-400.0,0.0001315,2]
[361029101,1747209096138,-873.16,0.0001315,2]
[361029102,1747209096147,-523.37,0.0001315,2]
[361029103,1747209096157,-4342.01,0.0001315,2]
[361029104,1747209096166,-352.56,0.0001315,2]
[361029105,1747209096176,-3290.66,0.0001315,2]
[361029106,1747209096186,-620.73,0.0001315,2]
[361029107,1747209096195,-1318.63,0.0001315,2]
[361029108,1747209096205,-400.0,0.0001315,2]
[361029109,1747209096215,-400.0,0.0001315,2]
[361029110,1747209096227,-794.74,0.0001315,2]
[361029111,1747209096236,-400.0,0.0001315,2]
[361029112,1747209096246,-496.52,0.0001315,2]
[361029113,1747209096255,-558.78,0.0001315,2]
[361029114,1747209096265,-400.0,0.0001315,2]
[361029115,1747209096274,-903.19,0.0001315,2]
[361029116,1747209096284,-824.62,0.0001315,2]
[361029117,1747209096293,-400.0,0.0001315,2]
[361029118,1747209096303,-400.0,0.0001315,2]
[361029119,1747209096312,-1186.62,0.0001315,2]
[361029120,1747209096322,-525.47,0.0001315,2]
[361029121,1747209096331,-400.0,0.0001315,2]
[361029122,1747209096341,-992.09,0.0001315,2]
[361029123,1747209096353,-507.48,0.0001315,2]
[361029124,1747209096363,-1186.0,0.0001315,2]
[361029125,1747209096373,-871.03,0.0001315,2]
[361029126,1747209096383,-2394.97,0.0001315,2]
[361029127,1747209096394,-8303.1,0.0001315,2]
[361029128,1747209096403,-635.51,0.0001315,2]
[361029129,1747209096413,-400.0,0.0001315,2]
[361029130,1747209096424,-635.86,0.0001315,2]
[361029131,1747209096434,-483.25,0.0001315,2]
[361029132,1747209096444,-400.0,0.0001315,2]
[361029133,1747209096454,-762.97,0.0001315,2]
[361029134,1747209096464,-400.0,0.0001315,2]
[361029135,1747209096474,-400.0,0.0001315,2]
[361029136,1747209096484,-539.78,0.0001315,2]
[361029137,1747209096494,-400.0,0.0001315,2]
[361029138,1747209096503,-566.07,0.0001315,2]
[361029139,1747209096513,-400.0,0.0001315,2]
[361029140,1747209096522,-400.0,0.0001315,2]
[361029141,1747209096532,-3884.54,0.0001315,2]
[361029142,1747209096542,-9332.17,0.0001315,2]
[361029143,1747209096552,-400.0,0.0001315,2]
[361029144,1747209096562,-400.0,0.0001315,2]
[361029145,1747209096572,-400.0,0.0001315,2]
[361029146,1747209096581,-521.21,0.0001315,2]
[361029147,1747209096591,-1359.75,0.0001315,2]
[361029148,1747209096600,-1804.54,0.0001315,2]
[361029149,1747209096610,-400.0,0.0001315,2]
[361029150,1747209096619,-3867.76,0.0001315,2]
[361029151,1747209096629,-1228.35,0.0001315,2]
[361029152,1747209096639,-454.4,0.0001315,2]
[361029153,1747209096649,-400.0,0.0001315,2]
[361029154,1747209096659,-470.84,0.0001315,2]
[361029155,1747209096669,-451.23,0.0001315,2]
[361029156,1747209096679,-3381.56,0.0001315,2]
[361029157,1747209096690,-1518.64,0.0001315,2]
[361029158,1747209096701,-3045.01,0.0001315,2]
[361029159,1747209096710,-161.29678771,0.0001315,2]
[361029160,1747209096721,-7510.59,0.0001315,2]
[361029161,1747209096731,-983.94,0.0001315,2]
[361029162,1747209096740,-400.0,0.0001315,2]
[361029163,1747209096750,-480.02,0.0001315,2]
[361029164,1747209096760,-616.03,0.0001315,2]
[361029165,1747209096770,-585.46,0.0001315,2]
[361029166,1747209096780,-400.0,0.0001315,2]
[361029167,1747209096790,-1727.32,0.0001315,2]
[361029168,1747209096800,-1174.5,0.0001315,2]
[361029169,1747209096810,-824.11,0.0001315,2]
[361029170,1747209096820,-294.51087748,0.0001315,2]
[361029171,1747209096830,-400.0,0.0001315,2]
[361029172,1747209096840,-400.0,0.0001315,2]
[361029173,1747209096849,-901.12,0.0001315,2]
[361029174,1747209096860,-400.0,0.0001315,2]
[361029175,1747209096870,-400.0,0.0001315,2]
[361029176,1747209096880,-465.08,0.0001315,2]
[361029177,1747209096890,-975.74,0.0001315,2]
[361029178,1747209096899,-1658.78,0.0001315,2]
[361029179,1747209096909,-400.0,0.0001315,2]
[361029180,1747209096919,-700.75,0.0001315,2]
[361029181,1747209096929,-400.0,0.0001315,2]
[361029182,1747209096939,-803.12,0.0001315,2]
[361029183,1747209096950,-2190.3,0.0001315,2]
[361029184,1747209096959,-400.0,0.0001315,2]
[361029185,1747209096969,-1386.9,0.0001315,2]
[361029186,1747209096978,-400.0,0.0001315,2]
[361029187,1747209096988,-400.0,0.0001315,2]
[361029188,1747209096999,-485.56,0.0001315,2]
[361029189,1747209097011,-1242.02,0.0001315,2]
[361029190,1747209097021,-790.06,0.0001315,2]
[361029191,1747209097032,-400.0,0.0001315,2]
[361029192,1747209097043,-400.0,0.0001315,2]
[361029193,1747209097052,-400.0,0.0001315,2]
[361029194,1747209097062,-1050.16,0.0001315,2]
[361029195,1747209097071,-21204.56,0.0001315,2]
[361029196,1747209097083,-400.0,0.0001315,2]
[361029197,1747209097094,-1025.65,0.0001315,2]
[361029198,1747209097104,-400.0,0.0001315,2]
[361029199,1747209097113,-400.0,0.0001315,2]
[361029200,1747209097123,-462.47,0.0001315,2]
[361029201,1747209097132,-489.88,0.0001315,2]
[361029202,1747209097141,-375.58367562,0.0001315,2]
[361029203,1747209097151,-433.44,0.0001315,2]
[361029204,1747209097160,-1903.72,0.0001315,2]
[361029205,1747209097169,-903.36,0.0001315,2]
[361029206,1747209097179,-400.0,0.0001315,2]
[361029207,1747209097188,-460.59,0.0001315,2]
[361029208,1747209097197,-400.0,0.0001315,2]
[361029209,1747209097207,-1352.46,0.0001315,2]
[361029210,1747209097216,-2297.07,0.0001315,2]
[361029211,1747209097226,-400.0,0.0001315,2]
[361029212,1747209097236,-400.0,0.0001315,2]
[361029213,1747209097245,-5802.65,0.0001315,2]
[361029214,1747209097255,-713.5,0.0001315,2]
[361029215,1747209097264,-1266.9,0.0001315,2]
[361029216,1747209097274,-434.56,0.0001315,2]
[361029217,1747209097283,-1158.53,0.0001315,2]
[361029218,1747209097293,-1010.68,0.0001315,2]
[361029219,1747209097303,-484.69,0.0001315,2]
[361029220,1747209097312,-1095.0,0.0001315,2]
[361029221,1747209097321,-1932.75,0.0001315,2]
[361029222,1747209097331,-435.72,0.0001315,2]
[361029223,1747209097340,-400.0,0.0001315,2]
[361029224,1747209097351,-1315.66,0.0001315,2]
[361029225,1747209097362,-457.59,0.0001315,2]
[361029226,1747209097372,-400.0,0.0001315,2]
[361029227,1747209097381,-496.1,0.0001315,2]
[361029228,1747209097391,-814.19,0.0001315,2]
[361029229,1747209097402,-459.36,0.0001315,2]
[361029230,1747209097411,-5005.62,0.0001315,2]
[361029231,1747209097421,-615.67,0.0001315,2]
[361029232,1747209097433,-4200.08,0.0001315,2]
[361029233,1747209097443,-400.0,0.0001315,2]
[361029234,1747209097452,-400.0,0.0001315,2]
[361029235,1747209097462,-402.79,0.0001315,2]
[361029236,1747209097472,-400.0,0.0001315,2]
[361029237,1747209097482,-1129.39,0.0001315,2]
[361029238,1747209097491,-695.95,0.0001315,2]
[361029239,1747209097501,-558.35,0.0001315,2]
[361029240,1747209097511,-900.7,0.0001315,2]
[361029241,1747209097521,-400.0,0.0001315,2]
[361029242,1747209097531,-2565.38,0.0001315,2]
[361029243,1747209097541,-1206.83,0.0001315,2]
[361029244,1747209097550,-400.0,0.0001315,2]
[361029245,1747209097560,-704.13,0.0001315,2]
[361029246,1747209097570,-905.95,0.0001315,2]
[361029247,1747209097579,-400.0,0.0001315,2]
[361029248,1747209097589,-461.69,0.0001315,2]
[361029249,1747209097599,-400.0,0.0001315,2]
[361029250,1747209097608,-1026.15,0.0001315,2]
[361029251,1747209097618,-926.7,0.0001315,2]
[361029252,1747209097628,-720.88,0.0001315,2]
[361029253,1747209097638,-828.79,0.0001315,2]
[361029254,1747209097647,-696.91,0.0001315,2]
[361029255,1747209097657,-2110.67,0.0001315,2]
[361029256,1747209097667,-400.0,0.0001315,2]
[361029257,1747209097677,-400.0,0.0001315,2]
[361029258,1747209097686,-540.58,0.0001315,2]
[361029259,1747209097696,-400.0,0.0001315,2]
[361029260,1747209097705,-1784.16,0.0001315,2]
[361029261,1747209097715,-400.0,0.0001315,2]
[361029262,1747209097724,-1232.7,0.0001315,2]
[361029263,1747209097734,-400.0,0.0001315,2]
[361029264,1747209097743,-1246.63,0.0001315,2]
[361029265,1747209097753,-400.0,0.0001315,2]
[361029266,1747209097762,-400.0,0.0001315,2]
[361029267,1747209097772,-1031.46,0.0001315,2]
[361029268,1747209097782,-614.08,0.0001315,2]
[361029269,1747209097791,-415.13,0.0001315,2]
[361029270,1747209097801,-915.16,0.0001315,2]
[361029271,1747209097810,-400.0,0.0001315,2]
[361029272,1747209097820,-400.0,0.0001315,2]
[361029273,1747209097829,-8117.6,0.0001315,2]
[361029274,1747209097839,-400.0,0.0001315,2]
[361029275,1747209097849,-1273.28,0.0001315,2]
[361029276,1747209097858,-400.0,0.0001315,2]
[361029277,1747209097868,-400.0,0.0001315,2]
[361029278,1747209097877,-400.0,0.0001315,2]
[361029279,1747209097887,-400.0,0.0001315,2]
[361029280,1747209097896,-2424.58,0.0001315,2]
[361029281,1747209097906,-447.54,0.0001315,2]
[361029282,1747209097915,-400.0,0.0001315,2]
[361029283,1747209097925,-723.09,0.0001315,2]
[361029284,1747209097934,-422.1,0.0001315,2]
[361029285,1747209097943,-1958.39,0.0001315,2]
[361029286,1747209097952,-400.0,0.0001315,2]
[361029287,1747209097962,-2526.26,0.0001315,2]
[361029288,1747209097971,-2914.11,0.0001315,2]
[361029289,1747209097980,-803.6,0.0001315,2]
[361029290,1747209097990,-8091.9,0.0001315,2]
[361029291,1747209097999,-599.26,0.0001315,2]
[361029292,1747209098008,-306.1001652,0.0001315,2]
[361029293,1747209098017,-1722.0,0.0001315,2]
[361029294,1747209098027,-905.05,0.0001315,2]
[361029295,1747209098036,-805.31,0.0001315,2]
[361029296,1747209098046,-400.0,0.0001315,2]
[361029297,1747209098055,-400.0,0.0001315,2]
[361029298,1747209098065,-981.33,0.0001315,2]
[361029299,1747209098074,-400.0,0.0001315,2]
[361029300,1747209098084,-2500.0,0.00013164,2]
[361029301,1747209098093,-151.0,0.00013168,2]
[361029302,1747209098102,-151.0,0.00013168,2]
[361029303,1747209098111,-151.0,0.00013168,2]
[361029304,1747209098120,-694.603253,0.00013168,2]
[361029305,1747209098130,-694.603253,0.00013168,2]
[361029306,1747209098139,-201.37144861,0.00013208,2]
[361029307,1747209098148,-198.56573352,0.00013233,2]
[361029308,1747209098157,-490.04379147,0.00013242,2]
[361029309,1747209098166,-162.380719,0.00013242,2]
[361029310,1747209098176,-223.0315306,0.00013242,2]
[361029311,1747209098185,-344.91441206,0.00013244,2]
[361029312,1747209098195,-13998.0547542,0.00013368,2]
[361029313,1747209098204,-400.0,0.00013423,2]
[361029314,1747209098214,-528.13,0.00013423,2]
[361029315,1747209098224,-816.27,0.00013423,2]
[361029316,1747209098234,-400.0,0.00013423,2]
[361029317,1747209098242,-679.38,0.00013423,2]
[361029318,1747209098252,-400.0,0.00013423,2]
[361029319,1747209098261,-400.0,0.00013424,2]
[361029320,1747209098270,-151.0,0.00013424,2]
[361029321,1747209098279,-151.0,0.00013424,2]
[361029322,1747209098289,-703.18,0.00013424,2]
[361029323,1747209098298,-188.722796,0.00013424,2]
[361029324,1747209098307,-151.0,0.00013424,2]
[361029325,1747209098316,-151.0,0.00013424,2]
[361029326,1747209098325,-151.0,0.00013424,2]
[361029327,1747209098335,-151.0,0.00013424,2]
[361029328,1747209098344,-235.889491,0.00013424,2]
[361029329,1747209098356,-235.889491,0.00013424,2]
[361029330,1747209098365,-203.093842,0.00013424,2]
[361029331,1747209098375,-203.093842,0.00013424,2]
[361029332,1747209098384,-366.589693,0.00013424,2]
[361029333,1747209098394,-366.589693,0.00013424,2]
[361029334,1747209098404,-151.0,0.00013424,2]
[361029335,1747209098413,-151.0,0.00013424,2]
[361029336,1747209098422,-272.12984239,0.00013424,2]
[361029337,1747209098434,-400.0,0.00013424,2]
[361029338,1747209098443,-596.11,0.00013424,2]
[361029339,1747209098452,-400.0,0.00013424,2]
[361029340,1747209098462,-400.0,0.00013424,2]
[361029341,1747209098472,-454.47,0.00013424,2]
[361029342,1747209098482,-711.57,0.00013424,2]
[361029343,1747209098492,-737.65,0.00013424,2]